[Event "Marmaris Karya IM 2018"]
[Site "Marmaris"]
[Date "2018.06.30"]
[Round "9.4"]
[White "Arda, Cagil Irmak"]
[Black "Benidze, Davit"]
[Result "0-1"]
[ECO "B08"]
[WhiteElo "2257"]
[BlackElo "2487"]
[Annotator "ChessBase"]
[PlyCount "112"]
[EventDate "2018.06.25"]
[EventCountry "TUR"]
[SourceTitle "playchess.com"]
[Source "ChessBase"]
[SourceQuality "1"]
[TimeControl "5400+30"]

1. e4 {[%emt 0:00:30]} c6 {[%emt 0:04:00]} 2. d4 {[%emt 0:00:00]} g6 {[%emt 0:00:00]} 3. Nc3 {[%emt 0:00:00]} Bg7 {[%emt 0:00:00]} 4. h3 {[%emt 0:00:30]} d6 {[%emt 0:00:30]} 5. Nf3 {[%emt 0:00:30]} Nf6 {[%emt 0:00:30]} 6. Be3 {[%emt 0:00:30]} O-O {[%emt 0:00:00]} 7. Qd2 {[%emt 0:03:30]} Nbd7 {[%emt 0:06:00]} 8. e5 {[%emt 0:10:30]} dxe5 {[%emt 0:00:30]} 9. dxe5 {[%emt 0:11:30]} Nd5 {[%emt 0:01:30]} 10. Nxd5 {[%emt 0:02:30]} cxd5 {[%emt 0:00:00]} 11. Bh6 {[%emt 0:05:30]} Qc7 {[%emt 0:17:00]} 12. Bxg7 {[%emt 0:02:30]} Kxg7 {[%emt 0:01:30]} 13. Qxd5 {[%emt 0:02:30]} Qxc2 {[%emt 0:01:30]} 14. Qd2 {[%emt 0:00:30]} Qxd2+ {[%emt 0:00:30]} 15. Kxd2 {[%emt 0:00:30]} Rd8 {[%emt 0:00:00]} 16. Ke3 {[%emt 0:00:30]} Nb6 {[%emt 0:00:00]} 17. Kf4 {[%emt 0:11:30]} Be6 {[%emt 0:01:30]} 18. Be2 {[%emt 0:01:30]} Rac8 {[%emt 0:01:30]} 19. Rhd1 {[%emt 0:07:30]} Rxd1 {[%emt 0:16:30]} 20. Bxd1 {[%emt 0:00:00]} Rc4+ {[%emt 0:01:30]} 21. Kg3 {[%emt 0:00:00]} Rc5 {[%emt 0:00:00]} 22. Bb3 {[%emt 0:05:30]} Bxb3 {[%emt 0:00:00]} 23. axb3 {[%emt 0:00:30]} a5 {[%emt 0:02:30]} 24. Rd1 {[%emt 0:02:30]} Rb5 {[%emt 0:00:00]} 25. Rd3 {[%emt 0:00:30]} e6 {[%emt 0:00:00]} 26. Rc3 {[%emt 0:02:30]} Nd5 {[%emt 0:02:30]} 27. Rd3 {[%emt 0:00:30]} Rc5 {[%emt 0:00:30]} 28. Nd2 {[%emt 0:07:30]} Nb4 {[%emt 0:14:30]} 29. Re3 {[%emt 0:08:37]} b5 {[%emt 0:00:30]} 30. Nf3 {[%emt 0:01:04]} Rd5 {[%emt 0:00:30]} 31. Re4 {[%emt 0:01:25]} Nc6 {[%emt 0:03:30]} 32. Re2 {[%emt 0:01:43]} h6 {[%emt 0:01:30]} 33. h4 {[%emt 0:01:56]} Kf8 {[%emt 0:00:30]} 34. Kf4 {[%emt 0:04:23]} Nb4 {[%emt 0:01:30]} 35. Ke4 {[%emt 0:01:24]} Nd3 {[%emt 0:07:00]} 36. Rd2 {[%emt 0:00:15]} Nc5+ {[%emt 0:00:02]} 37. Ke3 {[%emt 0:00:05]} Nxb3 {[%emt 0:00:07]} 38. Rxd5 {[%emt 0:00:05]} exd5 {[%emt 0:00:02]} 39. Nd4 {[%emt 0:00:05]} Nxd4 {[%emt 0:00:42]} 40. Kxd4 {[%emt 0:00:06]} b4 {[%emt 0:00:07]} 41. Kxd5 {[%emt 0:03:52]} a4 {[%emt 0:01:59]} 42. Kc4 {[%emt 0:00:03]} a3 {[%emt 0:00:02]} 43. bxa3 {[%emt 0:00:05]} bxa3 {[%emt 0:00:02]} 44. Kb3 {[%emt 0:00:04]} Ke7 {[%emt 0:00:33]} 45. Kxa3 {[%emt 0:01:32]} Ke6 {[%emt 0:00:02]} 46. Kb4 {[%emt 0:00:57]} Kxe5 {[%emt 0:00:22]} 47. Kc5 {[%emt 0:00:04]} f5 {[%emt 0:00:30]} 48. h5 {[%emt 0:00:51]} gxh5 {[%emt 0:00:47]} 49. Kc4 {[%emt 0:01:40]} Ke4 {[%emt 0:00:13]} 50. Kc3 {[%emt 0:00:36]} h4 {[%emt 0:00:30]} 51. Kd2 {[%emt 0:00:20]} h3 {[%emt 0:00:30]} 52. gxh3 {[%emt 0:00:05]} Kf3 {[%emt 0:00:00]} 53. Ke1 {[%emt 0:00:06]} Kg2 {[%emt 0:00:00]} 54. Ke2 {[%emt 0:00:16]} f4 {[%emt 0:00:00]} 55. f3 {[%emt 0:01:03]} Kxh3 {[%emt 0:00:00]} 56. Kf2 {[%emt 0:00:07]} Kh2 {[%emt 0:00:30]} 0-1

[Event "Marmaris Karya IM 2018"]
[Site "Marmaris"]
[Date "2018.06.30"]
[Round "9.5"]
[White "Unat, Can Haktan"]
[Black "Bagaturov, Giorgi"]
[Result "0-1"]
[ECO "B62"]
[WhiteElo "2047"]
[BlackElo "2397"]
[Annotator "ChessBase"]
[PlyCount "108"]
[EventDate "2018.06.25"]
[EventCountry "TUR"]
[SourceTitle "playchess.com"]
[Source "ChessBase"]
[SourceQuality "1"]
[TimeControl "5400+30"]

1. e4 {[%emt 0:02:30]} c5 {[%emt 0:01:00]} 2. Nf3 {[%emt 0:01:30]} Nc6 {[%emt 0:00:00]} 3. d4 {[%emt 0:02:30]} cxd4 {[%emt 0:00:00]} 4. Nxd4 {[%emt 0:00:30]} Nf6 {[%emt 0:00:30]} 5. Nc3 {[%emt 0:00:00]} d6 {[%emt 0:00:00]} 6. Bg5 {[%emt 0:01:00]} e6 {[%emt 0:00:00]} 7. g3 {[%emt 0:05:30]} h6 {[%emt 0:12:30]} 8. Be3 {[%emt 0:01:30]} e5 {[%emt 0:00:30]} 9. Nxc6 {[%emt 0:01:30]} bxc6 {[%emt 0:00:00]} 10. Bg2 {[%emt 0:05:30]} Ba6 {[%emt 0:10:00]} 11. Rb1 {[%emt 0:21:30]} Be7 {[%emt 0:01:30]} 12. Ne2 {[%emt 0:03:30]} O-O {[%emt 0:26:30]} 13. O-O {[%emt 0:00:30]} d5 {[%emt 0:00:30]} 14. exd5 {[%emt 0:01:30]} cxd5 {[%emt 0:00:30]} 15. h3 {[%emt 0:01:30]} d4 {[%emt 0:01:30]} 16. Bd2 {[%emt 0:02:30]} Rb8 {[%emt 0:13:30]} 17. Re1 {[%emt 0:00:30]} Bb7 {[%emt 0:01:30]} 18. Bxb7 {[%emt 0:06:30]} Rxb7 {[%emt 0:00:00]} 19. Kh2 {[%emt 0:00:30]} Qd5 {[%emt 0:04:00]} 20. Ng1 {[%emt 0:01:30]} Bd6 {[%emt 0:02:30]} 21. c3 {[%emt 0:01:30]} Qxa2 {[%emt 0:05:06]} 22. Qf3 {[%emt 0:01:30]} Rb6 {[%emt 0:02:55]} 23. Ne2 {[%emt 0:01:30]} Bb4 {[%emt 0:03:02]} 24. cxd4 {[%emt 0:01:30]} exd4 {[%emt 0:00:30]} 25. Qd3 {[%emt 0:01:30]} Bxd2 {[%emt 0:00:09]} 26. Qxd2 {[%emt 0:00:30]} Rfb8 {[%emt 0:05:46]} 27. Qxd4 {[%emt 0:01:30]} Rxb2 {[%emt 0:00:38]} 28. Rxb2 {[%emt 0:00:30]} Rxb2 {[%emt 0:01:06]} 29. Qd8+ {[%emt 0:00:00]} Kh7 {[%emt 0:00:05]} 30. Qd3+ {[%emt 0:00:00]} g6 {[%emt 0:00:23]} 31. Kg1 {[%emt 0:00:30]} Qe6 {[%emt 0:00:37]} 32. Qc3 {[%emt 0:01:30]} Rxe2 {[%emt 0:03:49]} 33. Rxe2 {[%emt 0:00:00]} Qxe2 {[%emt 0:00:05]} 34. Qxf6 {[%emt 0:00:00]} Qe6 {[%emt 0:00:32]} 35. Qd4 {[%emt 0:00:30]} a5 {[%emt 0:00:23]} 36. h4 {[%emt 0:00:30]} h5 {[%emt 0:00:28]} 37. Qa4 {[%emt 0:00:30]} Qe1+ {[%emt 0:00:28]} 38. Kg2 {[%emt 0:00:00]} Qb4 {[%emt 0:00:03]} 39. Qa2 {[%emt 0:00:00]} Kg8 {[%emt 0:00:35]} 40. Qe2 {[%emt 0:00:30]} a4 {[%emt 0:00:21]} 41. Qe8+ {[%emt 0:00:00]} Kg7 {[%emt 0:00:06]} 42. Qe5+ {[%emt 0:00:00]} Kh7 {[%emt 0:00:06]} 43. Qf6 {[%emt 0:01:30]} Qb3 {[%emt 0:00:14]} 44. g4 {[%emt 0:01:30]} hxg4 {[%emt 0:00:10]} 45. Qg5 {[%emt 0:00:30]} Qf3+ {[%emt 0:01:43]} 46. Kg1 {[%emt 0:00:00]} Qf5 {[%emt 0:00:48]} 47. Qe3 {[%emt 0:00:00]} Qd5 {[%emt 0:00:46]} 48. Qa7 {[%emt 0:00:30]} Qd1+ {[%emt 0:01:53]} 49. Kh2 {[%emt 0:00:00]} Qf3 {[%emt 0:00:44]} 50. h5 {[%emt 0:00:00]} gxh5 {[%emt 0:00:28]} 51. Qxa4 {[%emt 0:00:30]} Qxf2+ {[%emt 0:00:13]} 52. Kh1 {[%emt 0:00:00]} Qf5 {[%emt 0:00:45]} 53. Qa2 {[%emt 0:01:00]} g3 {[%emt 0:00:37]} 54. Qg2 {[%emt 0:00:00]} Qb1+ {[%emt 0:00:07]} 0-1

[Event "Marmaris Karya IM 2018"]
[Site "Marmaris"]
[Date "2018.06.29"]
[Round "10.1"]
[White "Darban, Morteza"]
[Black "Can, Isik"]
[Result "1/2-1/2"]
[ECO "C68"]
[WhiteElo "2312"]
[BlackElo "2396"]
[Annotator "NA"]
[PlyCount "28"]
[EventDate "2018.06.25"]
[EventCountry "TUR"]
[SourceTitle "playchess.com"]
[Source "ChessBase"]
[SourceQuality "1"]
[TimeControl "5400+30"]

1. e4 {[%emt 0:00:30]} e5 {[%emt 0:01:00]} 2. Nf3 {[%emt 0:00:30]} Nc6 {[%emt 0:00:30]} 3. Bb5 {[%emt 0:02:30]} a6 {[%emt 0:00:00]} 4. Bxc6 {[%emt 0:01:30]} dxc6 {[%emt 0:02:00]} 5. O-O {[%emt 0:00:00]} Bg4 {[%emt 0:00:30]} 6. h3 {[%emt 0:02:00]} h5 {[%emt 0:01:30]} 7. c3 {[%emt 0:01:30]} Qd3 {[%emt 0:00:30]} 8. hxg4 {[%emt 0:02:30]} hxg4 {[%emt 0:01:30]} 9. Nxe5 {[%emt 0:01:30]} Bd6 {[%emt 0:00:00]} 10. Nxd3 {[%emt 0:01:30]} Bh2+ {[%emt 0:00:00]} 11. Kh1 {[%emt 0:00:00]} Bg3+ {[%emt 0:00:00]} 12. Kg1 {[%emt 0:00:00]} Bh2+ {[%emt 0:00:00]} 13. Kh1 {[%emt 0:00:00]} Be5+ {[%emt 0:00:30]} 14. Kg1 {[%emt 0:00:00]} Bh2+ {[%emt 0:00:00]} 1/2-1/2